[Event "Titled Tuesday Blitz July 25 Early 2023"]
[White "Vovk, Orest"]
[Black "Tarasova, Viktoriya"]
[WhiteFideId "14113490"]
[BlackFideId "4175840"]
[WhiteElo "2569"]
[BlackElo "2392"]
[Result "1-0"]
[Round "3"]
[TimeControl "180+2"]
[Date "2023.07.25"]
[WhiteClock "0:01:33"]
[BlackClock "0:00:11"]
[Board "126"]

1. g4 {[%clk 0:03:00]}  d5 {[%clk 0:02:59]} 2. h3 {[%clk 0:03:00]}  h5 {[%clk 0:02:57]} 3. g5 {[%clk 0:02:57]}  e5 {[%clk 0:02:55]} 4. Bg2 {[%clk 0:02:57]}  c6 {[%clk 0:02:52]} 5. d4 {[%clk 0:02:57]}  e4 {[%clk 0:02:47]} 6. c4 {[%clk 0:02:57]}  h4 {[%clk 0:02:41]} 7. Nc3 {[%clk 0:02:57]}  Be7 {[%clk 0:02:41]} 8. Qb3 {[%clk 0:02:50]}  Be6 {[%clk 0:02:29]} 9. g6 {[%clk 0:02:42]}  Qb6 {[%clk 0:02:16]} 10. gxf7+ {[%clk 0:02:40]}  Bxf7 {[%clk 0:02:12]} 11. c5 {[%clk 0:02:40]}  Qxb3 {[%clk 0:01:53]} 12. axb3 {[%clk 0:02:41]}  Bf6 {[%clk 0:01:46]} 13. e3 {[%clk 0:02:35]}  Nd7 {[%clk 0:01:42]} 14. b4 {[%clk 0:02:34]}  Ne7 {[%clk 0:01:32]} 15. b5 {[%clk 0:02:34]}  O-O {[%clk 0:01:30]} 16. b4 {[%clk 0:02:30]}  Rfc8 {[%clk 0:00:35]} 17. f3 {[%clk 0:02:25]}  exf3 {[%clk 0:00:31]} 18. Nxf3 {[%clk 0:02:25]}  Nf5 {[%clk 0:00:32]} 19. O-O {[%clk 0:02:21]}  Ng3 {[%clk 0:00:26]} 20. Rf2 {[%clk 0:02:14]}  Bg6 {[%clk 0:00:26]} 21. Rfa2 {[%clk 0:02:10]}  cxb5 {[%clk 0:00:21]} 22. Rxa7 {[%clk 0:02:09]}  Rxa7 {[%clk 0:00:20]} 23. Rxa7 {[%clk 0:02:10]}  Rb8 {[%clk 0:00:16]} 24. Nxd5 {[%clk 0:02:08]}  Ne2+ {[%clk 0:00:15]} 25. Kf2 {[%clk 0:02:07]}  Nxc1 {[%clk 0:00:15]} 26. Nxf6+ {[%clk 0:02:07]}  Nxf6 {[%clk 0:00:15]} 27. Nxh4 {[%clk 0:02:07]}  Nd3+ {[%clk 0:00:15]} 28. Ke2 {[%clk 0:02:06]}  Bh7 {[%clk 0:00:14]} 29. Rxb7 {[%clk 0:02:02]}  Rxb7 {[%clk 0:00:13]} 30. Bxb7 {[%clk 0:02:02]}  Nxb4 {[%clk 0:00:14]} 31. c6 {[%clk 0:02:03]}  Nfd5 {[%clk 0:00:11]} 32. Nf3 {[%clk 0:01:51]}  Kf7 {[%clk 0:00:12]} 33. Ng5+ {[%clk 0:01:45]}  Kg6 {[%clk 0:00:12]} 34. Nxh7 {[%clk 0:01:45]}  Kxh7 {[%clk 0:00:13]} 35. e4 {[%clk 0:01:45]}  Nc7 {[%clk 0:00:13]} 36. d5 {[%clk 0:01:41]}  Ncxd5 {[%clk 0:00:13]} 37. exd5 {[%clk 0:01:41]}  Nxd5 {[%clk 0:00:14]} 38. Kd3 {[%clk 0:01:41]}  Kg6 {[%clk 0:00:14]} 39. Kd4 {[%clk 0:01:39]}  Nc7 {[%clk 0:00:14]} 40. Kc5 {[%clk 0:01:39]}  Kf6 {[%clk 0:00:14]} 41. Kb6 {[%clk 0:01:37]}  b4 {[%clk 0:00:10]} 42. Kxc7 {[%clk 0:01:34]}  b3 {[%clk 0:00:11]} 43. Ba6 {[%clk 0:01:34]}  b2 {[%clk 0:00:11]} 44. Bd3 {[%clk 0:01:34]}  Ke5 {[%clk 0:00:11]} 45. Kd7 {[%clk 0:01:33]} 1-0


[Site "https://www.chess.com"]

[Event "Titled Tuesday Blitz July 25 Early 2023"]
[White "Fernandez, Fernando"]
[Black "Eggleston, Thomas A"]
[WhiteFideId "3802299"]
[BlackFideId "412139"]
[WhiteElo "2568"]
[BlackElo "2390"]
[Result "1-0"]
[Round "3"]
[TimeControl "180+2"]
[Date "2023.07.25"]
[WhiteClock "0:00:05"]
[BlackClock "0:00:12"]
[Board "127"]

1. Nf3 {[%clk 0:03:00]}  Nf6 {[%clk 0:02:58]} 2. g3 {[%clk 0:02:59]}  d5 {[%clk 0:02:56]} 3. Bg2 {[%clk 0:02:57]}  e6 {[%clk 0:02:55]} 4. O-O {[%clk 0:02:55]}  c5 {[%clk 0:02:55]} 5. d4 {[%clk 0:02:52]}  Nc6 {[%clk 0:02:54]} 6. c4 {[%clk 0:02:51]}  dxc4 {[%clk 0:02:51]} 7. Qa4 {[%clk 0:02:47]}  Bd7 {[%clk 0:02:50]} 8. Qxc4 {[%clk 0:02:46]}  cxd4 {[%clk 0:02:47]} 9. Nxd4 {[%clk 0:02:45]}  Rc8 {[%clk 0:02:46]} 10. Nc3 {[%clk 0:02:38]}  Be7 {[%clk 0:02:35]} 11. Rd1 {[%clk 0:02:34]}  Nb4 {[%clk 0:02:25]} 12. Qb3 {[%clk 0:02:30]}  Qb6 {[%clk 0:02:16]} 13. Bf4 {[%clk 0:01:21]}  O-O {[%clk 0:02:06]} 14. a3 {[%clk 0:01:12]}  e5 {[%clk 0:01:45]} 15. Bxe5 {[%clk 0:01:02]}  Ng4 {[%clk 0:01:44]} 16. Bxg7 {[%clk 0:00:55]}  Kxg7 {[%clk 0:01:41]} 17. axb4 {[%clk 0:00:53]}  Qxb4 {[%clk 0:01:12]} 18. Qxb4 {[%clk 0:00:47]}  Bxb4 {[%clk 0:01:11]} 19. Rxa7 {[%clk 0:00:41]}  Rc7 {[%clk 0:01:04]} 20. Nd5 {[%clk 0:00:40]}  Bc5 {[%clk 0:01:03]} 21. Nxc7 {[%clk 0:00:22]}  Bxa7 {[%clk 0:01:03]} 22. h3 {[%clk 0:00:18]}  Ne5 {[%clk 0:00:59]} 23. Nd5 {[%clk 0:00:10]}  Rc8 {[%clk 0:00:52]} 24. e3 {[%clk 0:00:08]}  Nc4 {[%clk 0:00:48]} 25. b3 {[%clk 0:00:07]}  Na5 {[%clk 0:00:41]} 26. Ne7 {[%clk 0:00:07]}  Rc3 {[%clk 0:00:34]} 27. Ndf5+ {[%clk 0:00:06]}  Bxf5 {[%clk 0:00:34]} 28. Nxf5+ {[%clk 0:00:07]}  Kf6 {[%clk 0:00:34]} 29. Nd6 {[%clk 0:00:07]}  Rxb3 {[%clk 0:00:31]} 30. Nxf7 {[%clk 0:00:06]}  Rb2 {[%clk 0:00:21]} 31. Nd6 {[%clk 0:00:05]}  Nb3 {[%clk 0:00:18]} 32. Nxb7 {[%clk 0:00:03]}  Nd2 {[%clk 0:00:18]} 33. Nd6 {[%clk 0:00:03]}  Ke5 {[%clk 0:00:17]} 34. Rxd2 {[%clk 0:00:01]}  Rb1+ {[%clk 0:00:16]} 35. Kh2 {[%clk 0:00:01]}  Bc5 {[%clk 0:00:15]} 36. Ne4 {[%clk 0:00:02]}  Be7 {[%clk 0:00:15]} 37. f4+ {[%clk 0:00:02]}  Ke6 {[%clk 0:00:15]} 38. g4 {[%clk 0:00:03]}  Kf7 {[%clk 0:00:15]} 39. g5 {[%clk 0:00:04]}  Kg6 {[%clk 0:00:14]} 40. Re2 {[%clk 0:00:04]}  Bb4 {[%clk 0:00:14]} 41. Kg3 {[%clk 0:00:05]}  Be1+ {[%clk 0:00:14]} 42. Kg4 {[%clk 0:00:05]}  h5+ {[%clk 0:00:14]} 43. gxh6 {[%clk 0:00:05]}  Kxh6 {[%clk 0:00:15]} 44. Rc2 {[%clk 0:00:05]}  Ba5 {[%clk 0:00:13]} 45. Rc6+ {[%clk 0:00:05]}  Kg7 {[%clk 0:00:13]} 46. Ra6 {[%clk 0:00:05]}  Be1 {[%clk 0:00:12]} 47. Ng5 {[%clk 0:00:05]}  Rb2 {[%clk 0:00:12]} 48. Ra7+ {[%clk 0:00:04]}  Kf6 {[%clk 0:00:12]} 49. Rf7+ {[%clk 0:00:04]}  Kg6 {[%clk 0:00:12]} 50. Be4+ {[%clk 0:00:05]}  Kh6 {[%clk 0:00:12]} 51. Rh7# {[%clk 0:00:05]} 1-0


[Site "https://www.chess.com"]

[Event "Titled Tuesday Blitz July 25 Early 2023"]
[White "Trifan, Andrei Ioan"]
[Black "Qiao, Cindy"]
[WhiteFideId "12967068"]
[BlackFideId "2620243"]
[WhiteElo "2565"]
[BlackElo "2388"]
[Result "1-0"]
[Round "3"]
[TimeControl "180+2"]
[Date "2023.07.25"]
[WhiteClock "0:00:37"]
[BlackClock "0:00:07"]
[Board "129"]

1. e4 {[%clk 0:03:00]}  d5 {[%clk 0:02:58]} 2. exd5 {[%clk 0:03:00]}  Qxd5 {[%clk 0:02:59]} 3. Nc3 {[%clk 0:03:00]}  Qd6 {[%clk 0:02:58]} 4. d4 {[%clk 0:03:00]}  Nf6 {[%clk 0:02:57]} 5. Nf3 {[%clk 0:02:58]}  g6 {[%clk 0:02:57]} 6. Bc4 {[%clk 0:02:57]}  Bg7 {[%clk 0:02:46]} 7. Ne5 {[%clk 0:02:54]}  O-O {[%clk 0:02:42]} 8. Bf4 {[%clk 0:02:40]}  Qd8 {[%clk 0:02:31]} 9. Qf3 {[%clk 0:02:31]}  Qxd4 {[%clk 0:01:48]} 10. Rd1 {[%clk 0:02:26]}  Qb6 {[%clk 0:01:43]} 11. Nxf7 {[%clk 0:02:08]}  Be6 {[%clk 0:01:31]} 12. Ne5 {[%clk 0:01:53]}  Bxc4 {[%clk 0:01:23]} 13. Nxc4 {[%clk 0:01:53]}  Qe6+ {[%clk 0:01:20]} 14. Qe2 {[%clk 0:01:40]}  Qxe2+ {[%clk 0:01:02]} 15. Kxe2 {[%clk 0:01:38]}  c6 {[%clk 0:01:00]} 16. Rhe1 {[%clk 0:01:35]}  Nbd7 {[%clk 0:00:47]} 17. Kf1 {[%clk 0:01:31]}  Rae8 {[%clk 0:00:19]} 18. Bg3 {[%clk 0:01:30]}  Nb6 {[%clk 0:00:18]} 19. Na5 {[%clk 0:01:27]}  Nfd5 {[%clk 0:00:16]} 20. Nxd5 {[%clk 0:01:25]}  Nxd5 {[%clk 0:00:17]} 21. c3 {[%clk 0:01:24]}  e5 {[%clk 0:00:15]} 22. Re2 {[%clk 0:01:16]}  Re7 {[%clk 0:00:12]} 23. Rde1 {[%clk 0:01:14]}  Rfe8 {[%clk 0:00:12]} 24. Nc4 {[%clk 0:01:12]}  e4 {[%clk 0:00:11]} 25. Nd6 {[%clk 0:01:12]}  Rf8 {[%clk 0:00:11]} 26. Nxe4 {[%clk 0:01:09]}  Ref7 {[%clk 0:00:09]} 27. Ng5 {[%clk 0:01:04]}  Rf5 {[%clk 0:00:06]} 28. Ne6 {[%clk 0:01:02]}  R8f7 {[%clk 0:00:05]} 29. Kg1 {[%clk 0:00:57]}  Bf6 {[%clk 0:00:05]} 30. Nc5 {[%clk 0:00:54]}  Kg7 {[%clk 0:00:03]} 31. Ne6+ {[%clk 0:00:50]}  Kg8 {[%clk 0:00:03]} 32. h3 {[%clk 0:00:50]}  h5 {[%clk 0:00:03]} 33. a3 {[%clk 0:00:45]}  Bg7 {[%clk 0:00:03]} 34. Nd8 {[%clk 0:00:43]}  Rf8 {[%clk 0:00:03]} 35. Nxb7 {[%clk 0:00:42]}  R5f7 {[%clk 0:00:03]} 36. Nd6 {[%clk 0:00:41]}  Rd7 {[%clk 0:00:03]} 37. Nc4 {[%clk 0:00:40]}  Nf4 {[%clk 0:00:04]} 38. Bxf4 {[%clk 0:00:39]}  Rxf4 {[%clk 0:00:04]} 39. Ne5 {[%clk 0:00:38]}  Bxe5 {[%clk 0:00:05]} 40. Rxe5 {[%clk 0:00:39]}  Rd2 {[%clk 0:00:06]} 41. R1e2 {[%clk 0:00:38]}  Rd1+ {[%clk 0:00:06]} 42. Kh2 {[%clk 0:00:38]}  Rd7 {[%clk 0:00:07]} 43. Re6 {[%clk 0:00:37]} 1-0


[Site "https://www.chess.com"]

[Event "Titled Tuesday Blitz July 25 Early 2023"]
[White "Pershina, Elena"]
[Black "Fonseca Manrique, Enrique"]
[WhiteFideId "24147516"]
[BlackFideId "5114330"]
[WhiteElo "2386"]
[BlackElo "2564"]
[Result "1-0"]
[Round "3"]
[TimeControl "180+2"]
[Date "2023.07.25"]
[WhiteClock "0:01:13"]
[BlackClock "0:01:33"]
[Board "130"]

1. c4 {[%clk 0:03:00]}  e5 {[%clk 0:03:00]} 2. Nc3 {[%clk 0:02:59]}  Nf6 {[%clk 0:03:00]} 3. g3 {[%clk 0:02:59]}  Nc6 {[%clk 0:03:01]} 4. Bg2 {[%clk 0:02:59]}  Bb4 {[%clk 0:03:01]} 5. Nd5 {[%clk 0:02:58]}  O-O {[%clk 0:03:01]} 6. a3 {[%clk 0:02:51]}  Bc5 {[%clk 0:03:00]} 7. Nc3 {[%clk 0:02:49]}  d6 {[%clk 0:02:58]} 8. e3 {[%clk 0:02:46]}  Be6 {[%clk 0:02:54]} 9. d3 {[%clk 0:02:43]}  Qd7 {[%clk 0:02:54]} 10. h3 {[%clk 0:02:23]}  a6 {[%clk 0:02:20]} 11. Nge2 {[%clk 0:02:22]}  Bb6 {[%clk 0:02:20]} 12. b4 {[%clk 0:02:16]}  Rfe8 {[%clk 0:02:17]} 13. Bb2 {[%clk 0:02:14]}  Rad8 {[%clk 0:02:15]} 14. Nd5 {[%clk 0:02:12]}  Bxd5 {[%clk 0:02:14]} 15. cxd5 {[%clk 0:02:11]}  Ne7 {[%clk 0:02:15]} 16. Qb3 {[%clk 0:02:08]}  Ng6 {[%clk 0:02:06]} 17. O-O {[%clk 0:02:05]}  h5 {[%clk 0:02:06]} 18. Rac1 {[%clk 0:01:57]}  h4 {[%clk 0:02:06]} 19. g4 {[%clk 0:01:56]}  Nh7 {[%clk 0:02:01]} 20. Nc3 {[%clk 0:01:38]}  Ng5 {[%clk 0:01:56]} 21. Ne4 {[%clk 0:01:38]}  Qe7 {[%clk 0:01:51]} 22. a4 {[%clk 0:01:30]}  Rc8 {[%clk 0:01:33]} 23. a5 {[%clk 0:01:28]}  Ba7 {[%clk 0:01:33]} 24. b5 {[%clk 0:01:13]} 1-0


[Site "https://www.chess.com"]

[Event "Titled Tuesday Blitz July 25 Early 2023"]
[White "Topalov, Aleksandar"]
[Black "Roebers, Eline"]
[WhiteFideId "925659"]
[BlackFideId "1058401"]
[WhiteElo "2384"]
[BlackElo "2564"]
[Result "0-1"]
[Round "3"]
[TimeControl "180+2"]
[Date "2023.07.25"]
[WhiteClock "0:01:18"]
[BlackClock "0:00:53"]
[Board "132"]

1. b3 {[%clk 0:03:00]}  a5 {[%clk 0:02:59]} 2. a3 {[%clk 0:03:00]}  b6 {[%clk 0:02:58]} 3. Bb2 {[%clk 0:03:00]}  Bb7 {[%clk 0:02:59]} 4. Nf3 {[%clk 0:03:00]}  d6 {[%clk 0:02:56]} 5. c4 {[%clk 0:02:52]}  e5 {[%clk 0:02:55]} 6. d3 {[%clk 0:02:47]}  f5 {[%clk 0:02:55]} 7. Nc3 {[%clk 0:02:41]}  Nf6 {[%clk 0:02:54]} 8. e3 {[%clk 0:02:41]}  g6 {[%clk 0:02:54]} 9. Be2 {[%clk 0:02:40]}  Bg7 {[%clk 0:02:53]} 10. O-O {[%clk 0:02:40]}  O-O {[%clk 0:02:53]} 11. Qc2 {[%clk 0:02:39]}  Nbd7 {[%clk 0:02:51]} 12. b4 {[%clk 0:02:39]}  Qe7 {[%clk 0:02:48]} 13. Nb5 {[%clk 0:02:38]}  c6 {[%clk 0:02:39]} 14. Nc3 {[%clk 0:02:34]}  h6 {[%clk 0:02:39]} 15. bxa5 {[%clk 0:02:24]}  Rxa5 {[%clk 0:02:37]} 16. a4 {[%clk 0:02:24]}  g5 {[%clk 0:02:34]} 17. Ba3 {[%clk 0:02:23]}  f4 {[%clk 0:02:28]} 18. exf4 {[%clk 0:02:11]}  gxf4 {[%clk 0:02:23]} 19. Rfe1 {[%clk 0:02:05]}  Nh7 {[%clk 0:02:00]} 20. Bf1 {[%clk 0:02:03]}  Rf6 {[%clk 0:01:58]} 21. Ne4 {[%clk 0:02:00]}  Rg6 {[%clk 0:01:56]} 22. g3 {[%clk 0:01:56]}  c5 {[%clk 0:01:43]} 23. Bg2 {[%clk 0:01:53]}  h5 {[%clk 0:01:32]} 24. Nh4 {[%clk 0:01:45]}  Re6 {[%clk 0:01:25]} 25. Bc1 {[%clk 0:01:43]}  fxg3 {[%clk 0:01:17]} 26. hxg3 {[%clk 0:01:42]}  Qf7 {[%clk 0:01:02]} 27. Nf6+ {[%clk 0:01:36]}  Ndxf6 {[%clk 0:01:00]} 28. Bd2 {[%clk 0:01:28]}  Ra8 {[%clk 0:00:54]} 29. Nf5 {[%clk 0:01:19]}  Bxg2 {[%clk 0:00:53]} 30. Kxg2 {[%clk 0:01:18]}  Ng4 {[%clk 0:00:53]} 0-1


[Site "https://www.chess.com"]

[Event "Titled Tuesday Blitz July 25 Early 2023"]
[White "Harriott, Tyrell"]
[Black "To, Nhat Minh"]
[WhiteFideId "2086484"]
[BlackFideId "729019"]
[WhiteElo "2372"]
[BlackElo "2563"]
[Result "1-0"]
[Round "3"]
[TimeControl "180+2"]
[Date "2023.07.25"]
[WhiteClock "0:02:42"]
[BlackClock "0:01:59"]
[Board "133"]

1. d4 {[%clk 0:03:00]}  Nf6 {[%clk 0:02:59]} 2. e3 {[%clk 0:03:01]}  d5 {[%clk 0:02:58]} 3. Bd3 {[%clk 0:03:02]}  c5 {[%clk 0:02:58]} 4. c3 {[%clk 0:03:02]}  Nc6 {[%clk 0:02:58]} 5. f4 {[%clk 0:03:02]}  Bg4 {[%clk 0:02:57]} 6. Ne2 {[%clk 0:03:01]}  e6 {[%clk 0:02:57]} 7. Nd2 {[%clk 0:03:01]}  Bd6 {[%clk 0:02:55]} 8. O-O {[%clk 0:03:00]}  O-O {[%clk 0:02:56]} 9. Nf3 {[%clk 0:03:00]}  Bf5 {[%clk 0:02:52]} 10. Ng3 {[%clk 0:02:59]}  Ne4 {[%clk 0:02:23]} 11. Bxe4 {[%clk 0:02:48]}  Bxe4 {[%clk 0:02:21]} 12. Nd2 {[%clk 0:02:45]}  Bd3 {[%clk 0:02:18]} 13. Re1 {[%clk 0:02:45]}  b5 {[%clk 0:02:11]} 14. dxc5 {[%clk 0:02:43]}  Be7 {[%clk 0:02:02]} 15. Nb3 {[%clk 0:02:42]}  Bc4 {[%clk 0:01:59]} 16. Nd4 {[%clk 0:02:42]} 1-0


[Site "https://www.chess.com"]

[Event "Titled Tuesday Blitz July 25 Early 2023"]
[White "TomLiu777"]
[Black "Ilkhomi, Jaloliddin"]
[BlackFideId "14700948"]
[WhiteElo "2360"]
[BlackElo "2561"]
[Result "0-1"]
[Round "3"]
[TimeControl "180+2"]
[Date "2023.07.25"]
[WhiteClock "0:00:24"]
[BlackClock "0:01:40"]
[Board "136"]

1. c4 {[%clk 0:03:00]}  Nf6 {[%clk 0:02:58]} 2. Nc3 {[%clk 0:03:00]}  e6 {[%clk 0:02:57]} 3. e4 {[%clk 0:03:00]}  d5 {[%clk 0:02:58]} 4. cxd5 {[%clk 0:03:01]}  exd5 {[%clk 0:02:58]} 5. e5 {[%clk 0:03:01]}  d4 {[%clk 0:02:59]} 6. exf6 {[%clk 0:03:01]}  dxc3 {[%clk 0:02:59]} 7. Bb5+ {[%clk 0:03:01]}  c6 {[%clk 0:03:00]} 8. Qe2+ {[%clk 0:03:02]}  Be6 {[%clk 0:03:00]} 9. Bc4 {[%clk 0:03:02]}  Qxf6 {[%clk 0:02:55]} 10. dxc3 {[%clk 0:03:02]}  Be7 {[%clk 0:02:55]} 11. Bxe6 {[%clk 0:03:01]}  Qxe6 {[%clk 0:02:55]} 12. Qxe6 {[%clk 0:03:01]}  fxe6 {[%clk 0:02:56]} 13. Nf3 {[%clk 0:03:01]}  Nd7 {[%clk 0:02:57]} 14. O-O {[%clk 0:03:02]}  Kf7 {[%clk 0:02:56]} 15. Re1 {[%clk 0:03:02]}  Rhe8 {[%clk 0:02:56]} 16. Bg5 {[%clk 0:02:57]}  Bf6 {[%clk 0:02:55]} 17. Rad1 {[%clk 0:02:56]}  Rad8 {[%clk 0:02:55]} 18. Kf1 {[%clk 0:02:44]}  h6 {[%clk 0:02:53]} 19. Be3 {[%clk 0:02:44]}  Nb6 {[%clk 0:02:49]} 20. Bc5 {[%clk 0:02:40]}  Rd5 {[%clk 0:02:34]} 21. Bd4 {[%clk 0:02:23]}  Red8 {[%clk 0:02:27]} 22. Ke2 {[%clk 0:02:20]}  c5 {[%clk 0:02:20]} 23. Bxf6 {[%clk 0:02:18]}  gxf6 {[%clk 0:02:21]} 24. Rxd5 {[%clk 0:02:14]}  exd5 {[%clk 0:02:21]} 25. Kd3 {[%clk 0:02:10]}  Nc4 {[%clk 0:02:18]} 26. b3 {[%clk 0:02:07]}  Nd6 {[%clk 0:02:18]} 27. Nd2 {[%clk 0:01:57]}  h5 {[%clk 0:02:15]} 28. h4 {[%clk 0:01:43]}  Nf5 {[%clk 0:02:14]} 29. g3 {[%clk 0:01:41]}  Nh6 {[%clk 0:02:15]} 30. f3 {[%clk 0:01:28]}  Nf5 {[%clk 0:02:15]} 31. Nf1 {[%clk 0:01:14]}  Rg8 {[%clk 0:02:13]} 32. Re2 {[%clk 0:01:08]}  Nxg3 {[%clk 0:02:09]} 33. Nxg3 {[%clk 0:01:02]}  Rxg3 {[%clk 0:02:10]} 34. Ke3 {[%clk 0:01:03]}  Rh3 {[%clk 0:02:09]} 35. Rd2 {[%clk 0:00:57]}  Ke6 {[%clk 0:02:10]} 36. Rg2 {[%clk 0:00:56]}  Rxh4 {[%clk 0:01:56]} 37. Rg7 {[%clk 0:00:56]}  Rh2 {[%clk 0:01:56]} 38. a4 {[%clk 0:00:53]}  b6 {[%clk 0:01:57]} 39. Rxa7 {[%clk 0:00:53]}  Rb2 {[%clk 0:01:57]} 40. b4 {[%clk 0:00:34]}  cxb4 {[%clk 0:01:54]} 41. cxb4 {[%clk 0:00:35]}  Rxb4 {[%clk 0:01:55]} 42. Ra6 {[%clk 0:00:33]}  Ke5 {[%clk 0:01:52]} 43. f4+ {[%clk 0:00:28]}  Rxf4 {[%clk 0:01:49]} 44. Rxb6 {[%clk 0:00:26]}  Rxa4 {[%clk 0:01:50]} 45. Rb8 {[%clk 0:00:26]}  h4 {[%clk 0:01:51]} 46. Re8+ {[%clk 0:00:26]}  Kf5 {[%clk 0:01:51]} 47. Rd8 {[%clk 0:00:25]}  d4+ {[%clk 0:01:45]} 48. Kf3 {[%clk 0:00:25]}  Ra3+ {[%clk 0:01:45]} 49. Kg2 {[%clk 0:00:24]}  Ke4 {[%clk 0:01:43]} 50. Rh8 {[%clk 0:00:25]}  h3+ {[%clk 0:01:42]} 51. Kh1 {[%clk 0:00:23]}  f5 {[%clk 0:01:43]} 52. Rh4+ {[%clk 0:00:24]}  f4 {[%clk 0:01:41]} 53. Rh8 {[%clk 0:00:24]}  d3 {[%clk 0:01:40]} 0-1


[Site "https://www.chess.com"]

[Event "Titled Tuesday Blitz July 25 Early 2023"]
[White "Fiorito, Francisco"]
[Black "Andrews, Todd"]
[WhiteFideId "180165"]
[BlackFideId "2012456"]
[WhiteElo "2556"]
[BlackElo "2346"]
[Result "0-1"]
[Round "3"]
[TimeControl "180+2"]
[Date "2023.07.25"]
[WhiteClock "0:00:10"]
[BlackClock "0:00:14"]
[Board "138"]

1. e4 {[%clk 0:03:00]}  e6 {[%clk 0:02:59]} 2. d3 {[%clk 0:03:00]}  d5 {[%clk 0:03:00]} 3. Nd2 {[%clk 0:03:01]}  Nf6 {[%clk 0:03:00]} 4. g3 {[%clk 0:03:01]}  Nc6 {[%clk 0:03:01]} 5. Bg2 {[%clk 0:03:01]}  Bc5 {[%clk 0:03:01]} 6. Ngf3 {[%clk 0:02:59]}  dxe4 {[%clk 0:03:01]} 7. dxe4 {[%clk 0:02:58]}  e5 {[%clk 0:03:02]} 8. O-O {[%clk 0:02:58]}  O-O {[%clk 0:03:02]} 9. c3 {[%clk 0:02:58]}  a5 {[%clk 0:03:01]} 10. Qe2 {[%clk 0:02:58]}  Qe7 {[%clk 0:03:01]} 11. Nc4 {[%clk 0:02:58]}  b6 {[%clk 0:02:58]} 12. Bg5 {[%clk 0:02:58]}  Ba6 {[%clk 0:02:58]} 13. b3 {[%clk 0:02:58]}  h6 {[%clk 0:02:52]} 14. Bxf6 {[%clk 0:02:53]}  Qxf6 {[%clk 0:02:53]} 15. h4 {[%clk 0:02:47]}  Rfd8 {[%clk 0:02:34]} 16. Rad1 {[%clk 0:02:43]}  a4 {[%clk 0:02:33]} 17. Qc2 {[%clk 0:02:33]}  axb3 {[%clk 0:02:28]} 18. axb3 {[%clk 0:02:33]}  Bxc4 {[%clk 0:02:26]} 19. bxc4 {[%clk 0:02:32]}  Qe6 {[%clk 0:02:26]} 20. Rd5 {[%clk 0:02:27]}  f6 {[%clk 0:02:17]} 21. Kh2 {[%clk 0:02:23]}  Na5 {[%clk 0:02:13]} 22. Qd3 {[%clk 0:02:17]}  Be7 {[%clk 0:02:05]} 23. Rd1 {[%clk 0:02:14]}  Qc6 {[%clk 0:02:02]} 24. Nd2 {[%clk 0:02:03]}  Nb7 {[%clk 0:01:50]} 25. Bh3 {[%clk 0:02:00]}  Nc5 {[%clk 0:01:50]} 26. Nf1 {[%clk 0:01:58]}  Nxd3 {[%clk 0:01:49]} 27. R1xd3 {[%clk 0:01:51]}  Qxc4 {[%clk 0:01:39]} 28. Be6+ {[%clk 0:01:51]}  Kh7 {[%clk 0:01:32]} 29. Rxd8 {[%clk 0:01:50]}  Qxe4 {[%clk 0:01:25]} 30. Bd5 {[%clk 0:01:47]}  Qxd3 {[%clk 0:01:22]} 31. Bg8+ {[%clk 0:01:46]}  Kh8 {[%clk 0:01:21]} 32. Rxa8 {[%clk 0:01:20]}  Qxc3 {[%clk 0:01:02]} 33. h5 {[%clk 0:01:15]}  g5 {[%clk 0:01:00]} 34. hxg6 {[%clk 0:01:08]}  Kg7 {[%clk 0:01:00]} 35. Bf7 {[%clk 0:01:04]}  f5 {[%clk 0:00:56]} 36. Ne3 {[%clk 0:01:02]}  Qd2 {[%clk 0:00:38]} 37. Kg1 {[%clk 0:00:51]}  Bc5 {[%clk 0:00:35]} 38. Ra2 {[%clk 0:00:12]}  Bxe3 {[%clk 0:00:24]} 39. Rxd2 {[%clk 0:00:03]}  Bxd2 {[%clk 0:00:25]} 40. Kf1 {[%clk 0:00:04]}  b5 {[%clk 0:00:23]} 41. Ke2 {[%clk 0:00:04]}  Bc3 {[%clk 0:00:24]} 42. Kd3 {[%clk 0:00:04]}  Bd4 {[%clk 0:00:24]} 43. f4 {[%clk 0:00:04]}  c5 {[%clk 0:00:22]} 44. Be8 {[%clk 0:00:04]}  c4+ {[%clk 0:00:20]} 45. Kc2 {[%clk 0:00:04]}  b4 {[%clk 0:00:20]} 46. Bf7 {[%clk 0:00:04]}  c3 {[%clk 0:00:18]} 47. Kb3 {[%clk 0:00:05]}  exf4 {[%clk 0:00:18]} 48. gxf4 {[%clk 0:00:05]}  Be3 {[%clk 0:00:18]} 49. Be6 {[%clk 0:00:03]}  Kxg6 {[%clk 0:00:17]} 50. Bc4 {[%clk 0:00:03]}  Bxf4 {[%clk 0:00:18]} 51. Bd3 {[%clk 0:00:04]}  Bd6 {[%clk 0:00:17]} 52. Bc2 {[%clk 0:00:04]}  h5 {[%clk 0:00:17]} 53. Kc4 {[%clk 0:00:05]}  h4 {[%clk 0:00:18]} 54. Kd3 {[%clk 0:00:06]}  h3 {[%clk 0:00:18]} 55. Ke3 {[%clk 0:00:07]}  h2 {[%clk 0:00:19]} 56. Be4 {[%clk 0:00:07]}  fxe4 {[%clk 0:00:18]} 57. Kd4 {[%clk 0:00:06]}  h1=Q {[%clk 0:00:17]} 58. Kc4 {[%clk 0:00:06]}  Qf3 {[%clk 0:00:17]} 59. Kb5 {[%clk 0:00:06]}  Qd3+ {[%clk 0:00:17]} 60. Ka4 {[%clk 0:00:06]}  c2 {[%clk 0:00:16]} 61. Ka5 {[%clk 0:00:06]}  Bc7+ {[%clk 0:00:15]} 62. Ka4 {[%clk 0:00:06]}  Qa3+ {[%clk 0:00:15]} 63. Kb5 {[%clk 0:00:07]}  b3 {[%clk 0:00:14]} 64. Kc6 {[%clk 0:00:07]}  c1=Q+ {[%clk 0:00:14]} 65. Kd7 {[%clk 0:00:07]}  Qd6+ {[%clk 0:00:14]} 66. Kc8 {[%clk 0:00:08]}  Qd8+ {[%clk 0:00:14]} 67. Kb7 {[%clk 0:00:09]}  Qb8+ {[%clk 0:00:14]} 68. Ka6 {[%clk 0:00:10]}  Qa1# {[%clk 0:00:14]} 0-1


[Site "https://www.chess.com"]